fUSD/lending_fUSD_20250906
["ID","MTS","AMOUNT","RATE_DAILY","PERIOD"]
[383884657,1757153500609,-400.0,0.00049863,120]
[383884658,1757153500617,-400.0,0.00049863,120]
[383884659,1757153500628,-400.0,0.00049863,120]
[383884660,1757153500647,-400.0,0.00049863,120]
[383884661,1757153500657,-400.0,0.00049863,120]
[383884662,1757153500666,-404.71783146,0.00049863,120]
[383884663,1757153500676,-151.86608,0.00049863,120]
[383884664,1757153500685,-151.0,0.00049863,120]
[383884665,1757153500695,-151.0,0.00049863,120]
[383884666,1757153500707,-400.0,0.00049863,120]
[383884667,1757153500722,-400.0,0.00049863,120]
[383884668,1757153500732,-400.0,0.00049863,120]
[383884669,1757153500741,-400.0,0.00049863,120]
[383884670,1757153500751,-998.52,0.00049863,120]
[383884671,1757153500761,-400.0,0.00049863,120]
[383884672,1757153500770,-478.43,0.00049863,120]
[383884673,1757153500780,-400.0,0.00049863,120]
[383884674,1757153500789,-400.0,0.00049863,120]
[383884675,1757153500798,-400.0,0.00049863,120]
[383884676,1757153500807,-400.0,0.00049863,120]
[383884677,1757153500817,-400.0,0.00049863,120]
[383884678,1757153500826,-413.31,0.00049863,120]
[383884679,1757153500836,-501.04,0.00049863,120]
[383884680,1757153500845,-400.0,0.00049863,120]
[383884681,1757153500854,-481.71247991,0.00049863,120]
[383884682,1757153500863,-400.0,0.00049863,120]
[383884683,1757153500872,-500.0,0.00049863,2]
[383884684,1757153500882,-238.379131,0.00049863,120]
[383884685,1757153500891,-400.0,0.00049863,120]
[383884686,1757153500901,-400.0,0.00049863,120]
[383884687,1757153500910,-400.0,0.00049863,120]
[383884688,1757153500919,-400.0,0.00049863,120]
[383884689,1757153500928,-238.379131,0.00049863,120]
[383884690,1757153500937,-400.0,0.00049863,120]
[383884691,1757153500947,-400.0,0.00049863,120]
[383884692,1757153500956,-238.379131,0.00049863,120]
[383884693,1757153500966,-702.786079,0.00049863,120]
[383884694,1757153500975,-400.0,0.00049863,120]
[383884695,1757153500985,-238.379131,0.00049863,120]
[383884696,1757153500994,-702.786079,0.00049863,120]
[383884697,1757153501004,-405.37637194,0.00049863,120]
[383884698,1757153501013,-400.0,0.00049863,120]
[383884699,1757153501023,-466.81,0.00049863,120]
[383884700,1757153501032,-400.0,0.00049863,120]
[383884701,1757153501042,-400.0,0.00049863,120]
[383884702,1757153501052,-702.786079,0.00049863,120]
[383884703,1757153501061,-400.0,0.00049863,120]
[383884704,1757153501071,-218.15671432,0.00049863,120]
[383884705,1757153501089,-400.0,0.00049863,120]
[383884706,1757153501104,-702.786079,0.00049863,120]
[383884707,1757153501114,-400.0,0.00049863,120]
[383884708,1757153501123,-414.70006659,0.00049863,120]
[383884709,1757153501132,-547.23,0.00049863,120]
[383884710,1757153501142,-405.61211865,0.00049863,120]
[383884711,1757153501151,-400.0,0.00049863,120]
[383884712,1757153501161,-151.0,0.00049863,120]
[383884713,1757153501170,-400.0,0.00049863,120]
[383884714,1757153501180,-400.0,0.00049863,120]
[383884715,1757153501189,-400.0,0.00049863,120]
[383884716,1757153501198,-400.0,0.00049863,120]
[383884717,1757153501209,-400.0,0.00049863,120]
[383884718,1757153501218,-160.209909,0.00049863,120]
[383884719,1757153501228,-407.42827153,0.00049863,120]
[383884720,1757153501237,-1249.03,0.00049863,120]
[383884721,1757153501248,-400.0,0.00049863,120]
[383884722,1757153501257,-400.0,0.00049863,120]
[383884723,1757153501266,-400.0,0.00049863,120]
[383884724,1757153501276,-400.0,0.00049863,120]
[383884725,1757153501285,-400.0,0.00049863,120]
[383884726,1757153501295,-400.0,0.00049863,120]
[383884727,1757153501304,-400.0,0.00049863,120]
[383884728,1757153501313,-400.0,0.00049863,120]
[383884729,1757153501322,-400.0,0.00049863,120]
[383884730,1757153501332,-400.0,0.00049863,120]
[383884731,1757153501341,-416.77488082,0.00049863,120]
[383884732,1757153501351,-657.5,0.00049863,120]
[383884733,1757153501360,-400.0,0.00049863,120]
[383884734,1757153501370,-400.0,0.00049863,120]
[383884735,1757153501379,-400.0,0.00049863,120]
[383884736,1757153501388,-493.92,0.00049863,120]
[383884737,1757153501397,-402.3916046,0.00049863,120]
[383884738,1757153501406,-400.0,0.00049863,120]
[383884739,1757153501415,-417.04378223,0.00049863,120]
[383884740,1757153501425,-400.0,0.00049863,120]
[383884741,1757153501435,-400.0,0.00049863,120]
[383884742,1757153501444,-400.0,0.00049863,120]
[383884743,1757153501453,-400.0,0.00049863,120]
[383884744,1757153501463,-475.52325422,0.00049863,120]
[383884745,1757153501472,-997.51,0.00049863,120]
[383884746,1757153501482,-400.0,0.00049863,120]
[383884747,1757153501491,-2754.375304,0.00049863,120]
[383884748,1757153501501,-421.32676565,0.00049863,120]
[383884749,1757153501510,-358.152526,0.00049863,120]
[383884750,1757153501520,-2754.375304,0.00049863,120]
[383884751,1757153501529,-400.0,0.00049863,120]
[383884752,1757153501539,-400.0,0.00049863,120]
[383884753,1757153501548,-1660.698416,0.00049863,120]
[383884754,1757153501557,-403.71070377,0.00049863,120]
[383884755,1757153501567,-358.152526,0.00049863,120]
[383884756,1757153501577,-2754.375304,0.00049863,120]
[383884757,1757153501587,-400.0,0.00049863,120]
[383884758,1757153501597,-151.0,0.00049863,120]
[383884759,1757153501607,-1660.698416,0.00049863,120]
[383884760,1757153501616,-408.36262801,0.00049863,120]
[383884761,1757153501626,-358.152526,0.00049863,120]
[383884762,1757153501635,-400.0,0.00049863,120]
[383884763,1757153501645,-2754.375304,0.00049863,120]
[383884764,1757153501654,-1660.698416,0.00049863,120]
[383884765,1757153501663,-400.0,0.00049863,120]
[383884766,1757153501673,-358.152526,0.00049863,120]
[383884767,1757153501682,-400.0,0.00049863,120]
[383884768,1757153501692,-1660.698416,0.00049863,120]
[383884769,1757153501701,-400.0,0.00049863,120]
[383884770,1757153501710,-400.0,0.00049863,120]
[383884771,1757153501719,-400.0,0.00049863,120]
[383884772,1757153501729,-400.0,0.00049863,120]
[383884773,1757153501738,-400.0,0.00049863,120]
[383884774,1757153501749,-453.74,0.00049863,120]
[383884775,1757153501759,-400.0,0.00049863,120]
[383884776,1757153501768,-400.0,0.00049863,120]
[383884777,1757153501778,-400.0,0.00049863,120]
[383884778,1757153501787,-505.09789263,0.00049863,120]
[383884779,1757153501797,-400.0,0.00049863,120]
[383884780,1757153501806,-151.0,0.00049863,120]
[383884781,1757153501816,-2103.655026,0.00049863,120]
[383884782,1757153501826,-404.24959681,0.00049863,120]
[383884783,1757153501835,-400.0,0.00049863,120]
[383884784,1757153501845,-400.0,0.00049863,120]
[383884785,1757153501855,-151.0,0.00049863,120]
[383884786,1757153501864,-2103.655026,0.00049863,120]
[383884787,1757153501875,-533.9,0.00049863,120]
[383884788,1757153501886,-400.0,0.00049863,120]
[383884789,1757153501896,-151.0,0.00049863,120]
[383884790,1757153501906,-813.62,0.00049863,118]
[383884791,1757153501916,-400.0,0.00049863,120]
[383884792,1757153501925,-400.0,0.00049863,120]
[383884793,1757153501935,-558.060746,0.00049863,120]
[383884794,1757153501945,-2103.655026,0.00049863,120]
[383884795,1757153501955,-5226.191598,0.00049863,30]
[383884796,1757153501964,-2103.655026,0.00049863,120]
[383884797,1757153501974,-558.060746,0.00049863,120]
[383884798,1757153501983,-170.954605,0.00049863,30]
[383884799,1757153501992,-5226.191598,0.00049863,30]
[383884800,1757153502002,-151.0,0.00049863,120]
[383884801,1757153502012,-401.55133992,0.00049863,120]
[383884802,1757153502021,-151.0,0.00049863,60]
[383884803,1757153502031,-400.0,0.00049863,120]
[383884804,1757153502040,-558.060746,0.00049863,120]
[383884805,1757153502050,-400.0,0.00049863,120]
[383884806,1757153502059,-170.954605,0.00049863,30]
[383884807,1757153502069,-5226.191598,0.00049863,30]
[383884808,1757153502080,-400.0,0.00049863,120]
[383884809,1757153502090,-400.0,0.00049863,120]
[383884810,1757153502100,-151.0,0.00049863,120]
[383884811,1757153502110,-151.0,0.00049863,60]
[383884812,1757153502120,-558.060746,0.00049863,120]
[383884813,1757153502130,-170.954605,0.00049863,30]
[383884814,1757153502140,-400.0,0.00049863,120]
[383884815,1757153502150,-208.186397,0.00049863,120]
[383884816,1757153502160,-400.0,0.00049863,120]
[383884817,1757153502172,-400.0,0.00049863,120]
[383884818,1757153502182,-5226.191598,0.00049863,30]
[383884819,1757153502192,-170.954605,0.00049863,30]
[383884820,1757153502202,-400.0,0.00049863,120]
[383884821,1757153502212,-151.0,0.00049863,60]
[383884822,1757153502223,-919.13,0.00049863,120]
[383884823,1757153502233,-400.0,0.00049863,120]
[383884824,1757153502243,-652.28,0.00049863,120]
[383884825,1757153502255,-400.0,0.00049863,120]
[383884826,1757153502264,-1000.0,0.00049863,120]
[383884827,1757153502274,-224.810867,0.00049863,60]
[383884828,1757153502283,-400.0,0.00049863,120]
[383884829,1757153502293,-625.838594,0.00049863,120]
[383884830,1757153502302,-400.0,0.00049863,120]
[383884831,1757153502311,-400.0,0.00049863,120]
[383884832,1757153502320,-625.838594,0.00049863,120]
[383884833,1757153502329,-400.0,0.00049863,120]
[383884834,1757153502338,-1813.73,0.00049863,120]
[383884835,1757153502347,-400.0,0.00049863,120]
[383884836,1757153502357,-400.0,0.00049863,120]
[383884837,1757153502367,-625.838594,0.00049863,120]
[383884838,1757153502376,-400.0,0.00049863,120]
[383884839,1757153502385,-400.0,0.00049863,120]
[383884840,1757153502395,-400.0,0.00049863,120]
[383884841,1757153502404,-625.838594,0.00049863,120]
[383884842,1757153502413,-400.0,0.00049863,120]
[383884843,1757153502424,-400.0,0.00049863,120]
[383884844,1757153502435,-403.82651512,0.00049863,120]
[383884845,1757153502447,-430.24811391,0.00049863,120]
[383884846,1757153502457,-400.0,0.00049863,120]
[383884847,1757153502467,-400.0,0.00049863,120]
[383884848,1757153502477,-502.67,0.00049863,120]
[383884849,1757153502487,-400.0,0.00049863,120]
[383884850,1757153502496,-183.23,0.00049863,120]
[383884851,1757153502505,-400.0,0.00049863,120]
[383884852,1757153502515,-408.1044911,0.00049863,120]
[383884853,1757153502525,-1000.81,0.00049863,120]
[383884854,1757153502535,-400.0,0.00049863,120]
[383884855,1757153502545,-400.0,0.00049863,120]
[383884856,1757153502555,-16775.6,0.00049863,120]
[383884857,1757153502565,-400.0,0.00049863,120]
[383884858,1757153502740,-400.0,0.00049863,120]
[383884859,1757153502750,-400.0,0.00049863,120]
[383884860,1757153502759,-400.0,0.00049863,120]
[383884861,1757153502767,-966.69,0.00049863,120]
[383884862,1757153502776,-400.0,0.00049863,120]
[383884863,1757153502786,-400.0,0.00049863,120]
[383884864,1757153502795,-400.0,0.00049863,120]
[383884865,1757153502804,-400.0,0.00049863,120]
[383884866,1757153502813,-400.0,0.00049863,120]
[383884867,1757153502823,-415.09,0.00049863,120]
[383884868,1757153502832,-400.0,0.00049863,120]
[383884869,1757153502841,-400.0,0.00049863,120]
[383884870,1757153502851,-400.0,0.00049863,120]
[383884871,1757153502860,-400.31,0.00049863,120]
[383884872,1757153502870,-400.0,0.00049863,120]
[383884873,1757153502880,-400.0,0.00049863,120]
[383884874,1757153502889,-593.455917,0.00049863,120]
[383884875,1757153502900,-460.27,0.00049863,120]
[383884876,1757153502911,-400.0,0.00049863,120]
[383884877,1757153502922,-593.455917,0.00049863,120]
[383884878,1757153502932,-400.0,0.00049863,120]
[383884879,1757153502944,-400.0,0.00049863,120]
[383884880,1757153502953,-400.0,0.00049863,120]
[383884881,1757153502963,-593.455917,0.00049863,120]
[383884882,1757153502972,-593.455917,0.00049863,120]
[383884883,1757153502982,-400.0,0.00049863,120]
[383884884,1757153502992,-400.0,0.00049863,120]
[383884885,1757153503002,-400.0,0.00049863,120]
[383884886,1757153503012,-400.0,0.00049863,120]
[383884887,1757153503021,-400.0,0.00049863,120]
[383884888,1757153503030,-400.0,0.00049863,120]
[383884889,1757153503039,-400.0,0.00049863,120]
[383884890,1757153503049,-659.946177,0.00049863,120]
[383884891,1757153503059,-410.84892648,0.00049863,120]
[383884892,1757153503069,-400.0,0.00049863,120]
[383884893,1757153503081,-530.28,0.00049863,120]
[383884894,1757153503091,-659.946177,0.00049863,120]
[383884895,1757153503100,-2151.042427,0.00049863,120]
[383884896,1757153503110,-400.0,0.00049863,120]
[383884897,1757153503120,-659.946177,0.00049863,120]
[383884898,1757153503130,-2151.042427,0.00049863,120]
[383884899,1757153503140,-403.81241923,0.00049863,120]
[383884900,1757153503149,-240.981312,0.00049863,15]
[383884901,1757153503159,-400.0,0.00049863,120]
[383884902,1757153503170,-2070.792925,0.00049863,120]
[383884903,1757153503180,-400.0,0.00049863,120]
[383884904,1757153503190,-659.946177,0.00049863,120]
[383884905,1757153503200,-2151.042427,0.00049863,120]
[383884906,1757153503210,-258.86550685,0.00049863,120]
[383884907,1757153503219,-823.8,0.00049863,120]
[383884908,1757153503229,-240.981312,0.00049863,15]
[383884909,1757153503239,-2070.792925,0.00049863,120]
[383884910,1757153503248,-400.0,0.00049863,120]
[383884911,1757153503258,-2151.042427,0.00049863,120]
[383884912,1757153503267,-406.41,0.00049863,120]
[383884913,1757153503277,-400.0,0.00049863,120]
[383884914,1757153503286,-240.981312,0.00049863,15]
[383884915,1757153503296,-2070.792925,0.00049863,120]
[383884916,1757153503306,-400.0,0.00049863,120]
[383884917,1757153503317,-400.0,0.00049863,120]
[383884918,1757153503326,-546.56108436,0.00049863,120]
[383884919,1757153503336,-936.72,0.00049863,120]
[383884920,1757153503347,-240.981312,0.00049863,15]
[383884921,1757153503358,-591.79,0.00049863,120]
[383884922,1757153503368,-400.0,0.00049863,120]
[383884923,1757153503378,-2070.792925,0.00049863,120]
[383884924,1757153503389,-400.0,0.00049863,120]
[383884925,1757153503399,-400.0,0.00049863,120]
[383884926,1757153503409,-400.0,0.00049863,120]
[383884927,1757153503428,-400.0,0.00049863,120]
[383884928,1757153503439,-400.0,0.00049863,120]
[383884929,1757153503450,-400.0,0.00049863,120]
[383884930,1757153503459,-400.0,0.00049863,120]
[383884931,1757153503469,-402.53062111,0.00049863,120]
[383884932,1757153503479,-400.0,0.00049863,120]
[383884933,1757153503491,-400.0,0.00049863,120]
[383884934,1757153503502,-400.0,0.00049863,120]
[383884935,1757153503512,-440.96,0.00049863,120]
[383884936,1757153503522,-400.0,0.00049863,120]
[383884937,1757153503531,-400.0,0.00049863,120]
[383884938,1757153503541,-400.0,0.00049863,120]
[383884939,1757153503551,-400.0,0.00049863,120]
[383884940,1757153503560,-400.0,0.00049863,120]
[383884941,1757153503570,-400.0,0.00049863,120]
[383884942,1757153503580,-400.0,0.00049863,120]
[383884943,1757153503590,-400.0,0.00049863,120]
[383884944,1757153503599,-271.541194,0.00049863,120]
[383884945,1757153503610,-708.89,0.00049863,120]
[383884946,1757153503620,-271.541194,0.00049863,120]
[383884947,1757153503629,-400.0,0.00049863,120]
[383884948,1757153503639,-400.0,0.00049863,120]
[383884949,1757153503649,-400.0,0.00049863,120]
[383884950,1757153503660,-271.541194,0.00049863,120]
[383884951,1757153503670,-271.541194,0.00049863,120]
[383884952,1757153503681,-400.0,0.00049863,120]
[383884953,1757153503692,-400.0,0.00049863,120]
[383884954,1757153503704,-400.0,0.00049863,120]
[383884955,1757153503715,-403.27968265,0.00049863,120]
[383884956,1757153503724,-400.0,0.00049863,120]
[383884957,1757153503733,-400.0,0.00049863,120]
[383884958,1757153503745,-400.0,0.00049863,120]
[383884959,1757153503755,-400.0,0.00049863,120]
[383884960,1757153503765,-400.0,0.00049863,120]
[383884961,1757153503776,-400.0,0.00049863,120]
[383884962,1757153503786,-400.0,0.00049863,120]
[383884963,1757153503795,-151.0,0.00049863,120]
[383884964,1757153503806,-400.0,0.00049863,120]
[383884965,1757153503816,-587.11,0.00049863,120]
[383884966,1757153503826,-3135.83,0.00049863,5]
[383884967,1757153503836,-400.0,0.00049863,120]
[383884968,1757153503847,-400.0,0.00049863,120]
[383884969,1757153503857,-400.0,0.00049863,120]
[383884970,1757153503868,-400.0,0.00049863,120]
[383884971,1757153503878,-400.0,0.00049863,120]
[383884972,1757153503887,-429.53,0.00049863,120]
[383884973,1757153503897,-400.0,0.00049863,120]
[383884974,1757153503907,-400.0,0.00049863,120]
[383884975,1757153503918,-400.0,0.00049863,120]
[383884976,1757153503928,-400.0,0.00049863,120]
[383884977,1757153503952,-400.0,0.00049863,120]
[383884978,1757153503976,-400.0,0.00049863,120]
[383884979,1757153503998,-401.35851975,0.00049863,120]
[383884980,1757153504023,-400.0,0.00049863,60]
[383884981,1757153504042,-407.96,0.00049863,120]
[383884982,1757153504062,-400.0,0.00049863,120]
[383884983,1757153504084,-400.0,0.00049863,120]
[383884984,1757153504107,-400.0,0.00049863,120]
[383884985,1757153504127,-439.95,0.00049863,120]
[383884986,1757153504146,-400.0,0.00049863,120]
[383884987,1757153504170,-400.0,0.00049863,120]
[383884988,1757153504185,-851.32,0.00049863,14]
[383884989,1757153504205,-400.0,0.00049863,120]
[383884990,1757153504219,-400.0,0.00049863,120]
[383884991,1757153504238,-254.41034739,0.00049863,120]
[383884992,1757153504254,-400.0,0.00049863,120]
[383884993,1757153504271,-400.0,0.00049863,120]
[383884994,1757153504288,-400.0,0.00049863,120]
[383884995,1757153504305,-400.0,0.00049863,120]
[383884996,1757153504322,-400.0,0.00049863,120]
[383884997,1757153504339,-450.58,0.00049863,120]
[383884998,1757153504356,-400.0,0.00049863,120]
[383884999,1757153504373,-460.21,0.00049863,120]
[383885000,1757153504389,-400.0,0.00049863,120]
[383885001,1757153504405,-400.0,0.00049863,120]
[383885002,1757153504420,-254.533976,0.00049863,120]
[383885003,1757153504435,-400.0,0.00049863,120]
[383885004,1757153504452,-400.0,0.00049863,120]
[383885005,1757153504467,-187.89329862,0.00049863,120]
[383885006,1757153504483,-400.0,0.00049863,2]
[383885007,1757153504498,-254.533976,0.00049863,120]
[383885008,1757153504513,-400.0,0.00049863,120]
[383885009,1757153504529,-457.78,0.00049863,120]
[383885010,1757153504544,-400.0,0.00049863,120]
[383885011,1757153504559,-254.533976,0.00049863,120]
[383885012,1757153504575,-404.61625061,0.00049863,120]
[383885013,1757153504591,-254.533976,0.00049863,120]
[383885014,1757153504606,-400.0,0.00049863,120]
[383885015,1757153504623,-400.0,0.00049863,120]
[383885016,1757153504638,-526.69,0.00049863,120]
[383885017,1757153504654,-612.17,0.00049863,120]
[383885018,1757153504668,-199.750129,0.00049863,120]
[383885019,1757153504683,-400.0,0.00049863,120]
[383885020,1757153504698,-400.0,0.00049863,120]
[383885021,1757153504713,-715.719907,0.00049863,120]
[383885022,1757153504727,-1491.13,0.00049863,120]
[383885023,1757153504743,-338.883,0.00049863,120]
[383885024,1757153504758,-400.0,0.00049863,120]
[383885025,1757153504773,-151.0,0.00049863,120]
[383885026,1757153504788,-199.750129,0.00049863,120]
[383885027,1757153504803,-400.0,0.00049863,2]
[383885028,1757153504818,-715.719907,0.00049863,120]
[383885029,1757153504833,-165.286435,0.00049863,120]
[383885030,1757153504849,-400.0,0.00049863,120]
[383885031,1757153504865,-338.883,0.00049863,120]
[383885032,1757153504883,-199.750129,0.00049863,120]
[383885033,1757153504898,-715.719907,0.00049863,120]
[383885034,1757153504913,-154.86799796,0.00049863,120]
[383885035,1757153504928,-338.883,0.00049863,120]
[383885036,1757153504945,-400.0,0.00049863,120]
[383885037,1757153504960,-400.0,0.00049863,120]
[383885038,1757153504976,-199.750129,0.00049863,120]
[383885039,1757153504991,-715.719907,0.00049863,120]
[383885040,1757153505007,-400.0,0.00049863,120]
[383885041,1757153505022,-338.883,0.00049863,120]
[383885042,1757153505038,-400.0,0.00049863,120]
[383885043,1757153505053,-400.0,0.00049863,120]
[383885044,1757153505068,-400.0,0.00049863,120]
[383885045,1757153505087,-411.94778724,0.00049863,120]
[383885046,1757153505103,-182.869138,0.00049863,120]
[383885047,1757153505119,-400.0,0.00049863,120]
[383885048,1757153505135,-400.0,0.00049863,120]
[383885049,1757153505150,-182.869138,0.00049863,120]
[383885050,1757153505166,-400.0,0.00049863,120]
[383885051,1757153505181,-407.02875636,0.00049863,120]
[383885052,1757153505197,-400.0,0.00049863,120]
[383885053,1757153505213,-1122.66,0.00049863,120]
[383885054,1757153505230,-400.0,0.00049863,120]
[383885055,1757153505245,-182.869138,0.00049863,120]
[383885056,1757153505260,-182.869138,0.00049863,120]
[383885057,1757153505275,-400.0,0.00049863,120]
[383885058,1757153505290,-400.0,0.00049863,120]
[383885059,1757153505309,-151.0,0.00049863,60]
[383885060,1757153505324,-343.88959329,0.00049863,120]
[383885061,1757153505339,-628.09,0.00049863,120]
[383885062,1757153505354,-164.404291,0.00049863,120]
[383885063,1757153505370,-400.0,0.00049863,120]
[383885064,1757153505385,-151.0,0.00049863,60]
[383885065,1757153505401,-400.0,0.00049863,120]
[383885066,1757153505416,-400.0,0.00049863,120]
[383885067,1757153505432,-797.65,0.00049863,120]
[383885068,1757153505446,-151.0,0.00049863,120]
[383885069,1757153505461,-400.0,0.00049863,120]
[383885070,1757153505478,-209.066029,0.00049863,60]
[383885071,1757153505493,-151.0,0.00049863,120]
[383885072,1757153505509,-575.85,0.00049863,120]
[383885073,1757153505524,-535.25,0.00049863,120]
[383885074,1757153505540,-400.0,0.00049863,120]
[383885075,1757153505555,-400.0,0.00049863,120]
[383885076,1757153505570,-400.0,0.00049863,120]
[383885077,1757153505585,-400.0,0.00049863,120]
[383885078,1757153505601,-151.0,0.00049863,30]
[383885079,1757153505616,-387.96434329,0.00049863,5]
[383885080,1757153505631,-3142.51118072,0.00049863,120]
[383885081,1757153505647,-541.44,0.00049863,30]
[383885082,1757153505661,-541.44,0.00049863,30]
[383885083,1757153505676,-541.44,0.00049863,30]
[383885084,1757153505691,-541.44,0.00049863,30]
[383885085,1757153505706,-150.48,0.00049863,30]
[383885086,1757153505721,-150.0,0.00049863,30]
[383885087,1757153505736,-150.0,0.00049863,30]
[383885088,1757153505750,-498.0,0.00049863,2]
[383885089,1757153505765,-350.0,0.00049868,10]
[383885090,1757153505781,-500.0,0.00049884,30]
[383885091,1757153505795,-55866.4240302,0.00049893,2]
[383885092,1757153505810,-333.3435187,0.00049899,38]
[383885093,1757153506022,-165.00297054,0.000499,15]
[383885094,1757153506076,-300.0,0.000499,18]
[383885095,1757153506087,-910.81523194,0.000499,15]
[383885096,1757153506097,-199.0,0.00049946,13]
[383885097,1757153506107,-581.92747,0.00049967,40]
[383885098,1757153506117,-5800.0,0.00049975,21]
[383885099,1757153506127,-5800.0,0.00049983,21]
[383885100,1757153506136,-43069.78678541,0.0004999,2]
[383885101,1757153506145,-5800.0,0.00049992,21]
[383885102,1757153506155,-528.0,0.00049992,15]
[383885103,1757153506164,-300.0,0.00049999,30]
[383885104,1757153506173,-500.0,0.00049999,120]
[383885105,1757153506183,-500.0,0.00049999,120]
[383885106,1757153506192,-500.0,0.00049999,120]
[383885107,1757153506201,-500.0,0.00049999,120]
[383885108,1757153506211,-155.82135637,0.00049999,120]
[383885109,1757153506221,-300.0,0.00049999,30]
[383885110,1757153506230,-300.0,0.00049999,30]
[383885111,1757153506240,-500.0,0.00049999,120]
[383885112,1757153506249,-500.0,0.00049999,120]
[383885113,1757153506258,-500.0,0.00049999,120]
[383885114,1757153506267,-500.0,0.00049999,120]
[383885115,1757153506276,-500.0,0.00049999,120]
[383885116,1757153506285,-356.2194623,0.00049999,120]
[383885117,1757153506294,-500.0,0.00049999,2]
[383885118,1757153506304,-500.0,0.00049999,2]
[383885119,1757153506313,-500.0,0.00049999,2]
[383885120,1757153506322,-510.86915167,0.00049999,2]
[383885121,1757153506331,-300.0,0.00049999,30]
[383885122,1757153506342,-150.0,0.00049999,120]
[383885123,1757153506351,-150.0,0.00049999,120]
[383885124,1757153506362,-150.0,0.00049999,120]
[383885125,1757153506372,-150.0,0.00049999,120]
[383885126,1757153506381,-10000.0,0.0005,120]
[383885127,1757153506391,-54756.68980325,0.0005,30]
[383885128,1757153506400,-4565.41199265,0.0005,120]
[383885129,1757153506410,-1144.45136546,0.0005,2]
[383885130,1757153506419,-200.0,0.0005,120]
[383885131,1757153506429,-270803.62494339,0.0005,120]
[383885132,1757153507130,-129196.37505661,0.0005,120]
[383885133,1757153507139,-5800.0,0.0005,21]
[383885134,1757153507149,-1638.16,0.0005,120]
[383885135,1757153507161,-497345.34886493,0.0005,120]
[383885136,1757153507638,-40.12230969,0.00047999,120]
[383885137,1757153507692,-110.87769031,0.00047999,120]
[383885138,1757153507701,-500.0,0.00047999,120]
[383885139,1757153507711,-500.0,0.00047999,120]
[383885140,1757153507720,-151.0,0.00047999,120]
[383885141,1757153507729,-500.0,0.00047999,120]
[383885142,1757153507738,-500.0,0.00047999,120]
[383885143,1757153507747,-151.0,0.00047999,120]
[383885144,1757153507757,-500.0,0.00047999,120]
[383885145,1757153507766,-151.0,0.00047999,120]
[383885146,1757153507776,-151.0,0.00049315,120]
[383885147,1757153507787,-161.536083,0.00049315,120]
[383885148,1757153507796,-401.81626062,0.00049315,120]
[383885149,1757153507806,-1021.19,0.00049315,120]
[383885150,1757153507816,-151.0,0.00049315,120]
[383885151,1757153507826,-151.0,0.00049315,30]
[383885152,1757153507836,-151.0,0.00049315,120]
[383885153,1757153507845,-151.0,0.00049315,120]
[383885154,1757153507856,-277.07037824,0.00049589,120]
[383885155,1757153507868,-122.92962176,0.00049589,120]
[383885156,1757153507878,-151.0,0.00049589,120]